bitfinex-derivatives/quotes_BTCF0:USTF0_20250929
["timestamp","ask_amount","ask_price","bid_price","bid_amount"]
[1759108259631,0.39867,112330.0,112320.0,0.63801616]
[1759108259831,0.39867,112330.0,112320.0,0.66998991]
[1759108260036,0.39867,112330.0,112320.0,1.48070991]
[1759108260238,0.39867,112330.0,112320.0,0.66998991]
[1759108260439,0.4876539,112330.0,112320.0,1.48070991]
[1759108260936,0.39867,112330.0,112320.0,1.48070991]
[1759108261943,0.38557,112330.0,112320.0,1.48070991]
[1759108268245,0.4745539,112330.0,112320.0,1.44873616]
[1759108269646,0.38557,112330.0,112320.0,1.48070991]
[1759108269846,0.38557,112330.0,112320.0,1.44873616]
[1759108270350,0.4745539,112330.0,112320.0,0.63801616]
[1759108270542,0.4876539,112330.0,112320.0,1.44869616]
[1759108272850,0.50798787,112330.0,112320.0,0.63801616]
[1759108273145,1.16478005,112330.0,112320.0,0.36730398]
[1759108273649,1.16478005,112330.0,112320.0,0.62409616]
[1759108274149,0.93691799,112330.0,112320.0,0.62409616]
[1759108274348,0.1239418,112320.0,112310.0,0.1258348]
[1759108274550,0.76164655,112320.0,112310.0,0.27971218]
[1759108274851,0.76164655,112320.0,112310.0,0.25679218]
[1759108275044,1.57232655,112320.0,112310.0,0.25679218]
[1759108275246,0.1239497,112310.0,112300.0,0.32770853]
[1759108275547,0.50486227,112310.0,112300.0,0.58450071]
[1759108275748,0.50386227,112310.0,112300.0,0.53650436]
[1759108276140,0.50386227,112310.0,112300.0,0.58450071]
[1759108276343,0.50386227,112310.0,112300.0,0.53650436]
[1759108276648,0.50386227,112310.0,112300.0,0.62951196]
[1759108277151,0.50386227,112310.0,112300.0,0.67750831]
[1759108277448,0.50386227,112310.0,112300.0,0.67850831]
[1759108279050,0.50386227,112310.0,112300.0,0.69138831]
[1759108279246,0.49110227,112310.0,112300.0,0.69138831]
[1759108279449,0.40310257,112310.0,112300.0,0.94818049]
[1759108279643,0.40310257,112310.0,112300.0,0.69138831]
[1759108280140,0.38299,112310.0,112300.0,0.94818049]
[1759108280345,0.3608,112310.0,112300.0,0.94818049]
[1759108281551,0.38318,112310.0,112300.0,0.94818049]
[1759108281946,0.3608,112310.0,112300.0,1.34818049]
[1759108282649,0.3608,112310.0,112300.0,1.30018414]
[1759108284459,0.3608,112320.0,112310.0,0.1234897]
[1759108284650,0.3608,112320.0,112310.0,1.49585591]
[1759108284845,0.38092015,112320.0,112310.0,1.49585591]
[1759108285449,0.38092015,112320.0,112310.0,1.89585591]
[1759108285654,0.38092015,112320.0,112310.0,1.89685591]
[1759108286749,0.38092015,112320.0,112310.0,1.08609591]
[1759108286953,0.38092015,112320.0,112310.0,1.89685591]
[1759108288755,0.38318,112340.0,112330.0,0.0889839]
[1759108289058,0.38318,112340.0,112330.0,0.63705826]
[1759108290256,0.38718,112340.0,112330.0,0.63705826]
[1759108291354,0.39218,112340.0,112330.0,1.45133826]
[1759108292662,0.42420407,112340.0,112330.0,1.45133826]
[1759108294953,0.47218334,112340.0,112330.0,1.45133826]
[1759108295260,0.47218334,112340.0,112330.0,1.46011505]
[1759108295453,0.47218334,112340.0,112330.0,0.64583505]
[1759108295758,0.47218334,112340.0,112330.0,1.45995505]
[1759108299358,0.47218334,112340.0,112330.0,0.64583505]
[1759108299559,0.47218334,112340.0,112330.0,1.45943505]
[1759108299760,0.56115924,112340.0,112330.0,1.45939505]
[1759108300469,0.47218334,112340.0,112330.0,0.64583505]
[1759108300662,0.47218334,112340.0,112330.0,1.45935505]
[1759108300864,0.581213,112340.0,112330.0,1.45935505]
[1759108301169,0.581213,112340.0,112330.0,1.45931505]
[1759108302065,0.581213,112340.0,112330.0,0.64583505]
[1759108302263,0.581213,112340.0,112330.0,1.45923505]
[1759108302670,0.53323373,112340.0,112330.0,1.45923505]
[1759108304071,0.53323373,112340.0,112330.0,0.64583505]
[1759108304271,0.53323373,112340.0,112330.0,1.45021826]
[1759108306171,0.08345783,112340.0,112330.0,0.1234739]
[1759108306374,0.53323373,112340.0,112330.0,1.45005826]
[1759108307169,0.581213,112340.0,112330.0,1.45005826]
[1759108308077,0.53323373,112340.0,112330.0,1.45005826]
[1759108308273,0.581213,112340.0,112330.0,1.45005826]
[1759108311171,0.581213,112340.0,112330.0,1.45069826]
[1759108312293,0.581213,112340.0,112330.0,1.19390431]
[1759108313288,0.02905376,112340.0,112330.0,1.55470431]
[1759108317089,0.02905376,112340.0,112330.0,1.62488383]
[1759108317492,0.02905376,112340.0,112330.0,2.28167424]
[1759108320482,0.02905376,112340.0,112330.0,2.28083424]
[1759108320683,0.02905376,112340.0,112330.0,2.02404383]
[1759108321183,0.0290778,112340.0,112330.0,2.02404383]
[1759108321982,0.0290778,112340.0,112330.0,2.28083424]
[1759108323689,0.0290778,112340.0,112330.0,1.46803424]
[1759108323994,0.0290778,112340.0,112330.0,2.28047424]
[1759108324997,0.0290778,112340.0,112330.0,1.46803424]
[1759108325400,0.0290778,112340.0,112330.0,2.28051424]
[1759108325602,0.0290778,112340.0,112330.0,2.02372383]
[1759108325999,0.0290778,112340.0,112330.0,2.28051424]
[1759108326995,0.0290778,112340.0,112330.0,1.88051424]
[1759108330003,0.0290778,112340.0,112330.0,1.06803424]
[1759108330203,0.0290778,112340.0,112330.0,1.88095424]
[1759108330401,0.0290778,112340.0,112330.0,1.92897609]
[1759108331406,0.0290778,112340.0,112330.0,1.11605609]
[1759108331712,0.0290778,112340.0,112330.0,1.92885609]
[1759108332903,0.0290778,112340.0,112330.0,1.88083424]
[1759108333092,0.0290778,112340.0,112330.0,2.06003424]
[1759108333903,0.0290778,112340.0,112330.0,1.24723424]
[1759108334205,0.0290778,112340.0,112330.0,2.05967424]
[1759108335808,0.0290778,112340.0,112330.0,1.24723424]
[1759108336001,0.0290778,112340.0,112330.0,2.05971424]
[1759108336513,0.0290778,112340.0,112330.0,1.24723424]
[1759108336804,0.0290778,112340.0,112330.0,2.05959424]
[1759108338902,0.0290778,112340.0,112330.0,1.88039424]
[1759108342710,0.009,112340.0,112330.0,1.92841609]
[1759108344908,0.009,112340.0,112330.0,2.10761609]
[1759108346009,0.009,112340.0,112330.0,1.29525609]
[1759108346208,0.009,112340.0,112330.0,2.10745609]
[1759108349315,0.009,112340.0,112330.0,2.18745609]
[1759108350809,0.3608,112360.0,112340.0,0.0889738]
[1759108351012,0.38244,112360.0,112350.0,1.45064882]
[1759108352114,0.3748,112360.0,112350.0,1.45064882]
[1759108352718,0.3758,112360.0,112350.0,1.45064882]
[1759108354018,0.3738,112360.0,112350.0,1.45064882]
[1759108355516,0.013,112360.0,112350.0,1.45064882]
[1759108355818,0.013,112360.0,112350.0,1.81144882]
[1759108356525,0.013,112360.0,112350.0,1.84342502]
[1759108357318,0.013,112360.0,112350.0,1.84350502]
[1759108357619,0.006,112360.0,112350.0,1.84350502]
[1759108357820,0.003,112360.0,112350.0,1.84350502]
[1759108358123,0.009,112360.0,112350.0,1.84350502]
[1759108358418,0.009,112360.0,112350.0,1.84346502]
[1759108358813,0.009,112360.0,112350.0,1.84394502]
[1759108359120,0.009,112360.0,112350.0,1.03154502]
[1759108359322,0.009,112360.0,112350.0,1.84390502]
[1759108359522,0.39144,112360.0,112350.0,0.67074502]
[1759108359721,0.39144,112360.0,112350.0,0.9694442]
[1759108359923,0.39144,112360.0,112350.0,1.45104882]
[1759108360514,0.39144,112360.0,112350.0,0.63876882]
[1759108360715,0.39144,112360.0,112350.0,1.45104882]
[1759108360923,0.39144,112360.0,112350.0,1.48294502]
[1759108361421,0.39144,112360.0,112350.0,0.67074502]
[1759108361623,0.39144,112360.0,112350.0,1.48290502]
[1759108362224,0.39144,112360.0,112350.0,0.67074502]
[1759108362623,0.39144,112360.0,112350.0,1.48314502]
[1759108363724,0.39144,112360.0,112350.0,0.67074502]
[1759108363921,0.39144,112360.0,112350.0,1.48302502]
[1759108364323,0.4804001,112360.0,112350.0,1.48302502]
[1759108365027,0.4804001,112360.0,112350.0,1.48290502]
[1759108365624,0.4804001,112360.0,112350.0,1.48286502]
[1759108365822,0.4804001,112360.0,112350.0,0.67074502]
[1759108366025,0.4804001,112360.0,112350.0,1.48302502]
[1759108366830,0.4804001,112360.0,112350.0,0.67074502]
[1759108367030,0.4804001,112360.0,112350.0,1.48290502]
[1759108368533,0.91412258,112360.0,112350.0,0.41395461]
[1759108368727,0.91412258,112360.0,112350.0,0.38197841]
[1759108369026,0.8937301,112360.0,112350.0,0.38197841]
[1759108370835,0.8937301,112360.0,112350.0,0.125188]
[1759108371034,0.8937301,112360.0,112350.0,0.38197841]
[1759108374240,0.8937301,112360.0,112350.0,0.38192342]
[1759108375040,0.8804001,112360.0,112350.0,0.41389962]
[1759108375737,0.8804001,112360.0,112350.0,0.67063504]
[1759108377944,0.8804001,112360.0,112350.0,0.41389962]
[1759108379447,0.8804001,112360.0,112350.0,0.38192342]
[1759108380045,0.8804001,112360.0,112350.0,0.41389962]
[1759108380439,0.8937301,112360.0,112350.0,0.41389962]
[1759108380740,1.17097555,112360.0,112350.0,0.27938542]
[1759108380946,0.125258,112350.0,112340.0,0.44780667]
[1759108381146,0.486058,112350.0,112340.0,0.70454209]
[1759108381542,0.50621452,112350.0,112340.0,0.62454404]
[1759108382347,0.50921452,112350.0,112340.0,0.62454404]
[1759108382551,0.51221452,112350.0,112340.0,0.62454404]
[1759108383661,0.51221452,112350.0,112330.0,0.96120495]
[1759108383662,0.1252659,112340.0,112330.0,0.07012185]
[1759108383958,0.1247739,112330.0,112320.0,0.18095551]
[1759108384159,0.50573042,112330.0,112320.0,0.68546079]
[1759108385354,0.57754699,112330.0,112320.0,0.68546079]
[1759108385858,0.50573042,112330.0,112320.0,0.68546079]
[1759108386160,0.50573042,112330.0,112320.0,0.68646079]
[1759108386358,0.50573042,112330.0,112320.0,0.69550986]
[1759108386359,0.40391652,112330.0,112320.0,0.69550986]
[1759108387662,0.40391652,112330.0,112320.0,0.69850986]
[1759108389958,0.47539856,112330.0,112320.0,0.69850986]
[1759108391763,0.56438246,112330.0,112320.0,0.69850986]
[1759108392766,0.54422594,112330.0,112320.0,0.69850986]
[1759108394064,0.54422594,112330.0,112320.0,0.68946079]
[1759108395967,0.3608,112330.0,112320.0,0.68946079]
[1759108396160,0.3608,112340.0,112330.0,0.1248439]
[1759108396466,0.38399,112350.0,112340.0,0.1248359]
[1759108396665,0.40412918,112350.0,112340.0,0.89504216]
[1759108396966,0.40412918,112350.0,112340.0,0.94299654]
[1759108397661,0.38093918,112350.0,112340.0,0.94299654]
[1759108397866,0.40712918,112350.0,112340.0,0.94299654]
[1759108398267,0.41012918,112350.0,112340.0,0.94299654]
[1759108399872,0.02613918,112350.0,112340.0,0.94299654]
[1759108402070,0.04862918,112350.0,112340.0,0.17279028]
[1759108402266,0.02613918,112350.0,112340.0,0.89504216]
[1759108402463,0.02613918,112350.0,112340.0,0.94299654]
[1759108403271,0.04862918,112350.0,112340.0,0.94299654]
[1759108403473,0.02613918,112350.0,112340.0,0.94299654]
[1759108404170,0.02613918,112350.0,112340.0,0.89504216]
[1759108406165,0.04862918,112350.0,112340.0,1.71104216]
[1759108406476,0.04862918,112350.0,112340.0,1.71080216]
[1759108407277,0.04862918,112350.0,112340.0,0.89504216]
[1759108407475,0.04862918,112350.0,112340.0,1.71080216]
[1759108408473,0.04862918,112350.0,112340.0,1.71056216]
[1759108410278,0.04862918,112350.0,112340.0,1.71052216]
[1759108410481,0.04862918,112350.0,112340.0,0.89504216]
[1759108410781,0.04862918,112350.0,112340.0,1.44032674]
[1759108410782,0.42271918,112350.0,112340.0,1.44032674]
[1759108410971,0.51168718,112350.0,112340.0,0.62500674]
[1759108411174,1.9839026,112350.0,112340.0,0.34571132]
[1759108411476,1.72716718,112350.0,112340.0,0.34571132]
[1759108411677,1.63831918,112350.0,112340.0,0.63661674]
[1759108411883,0.40942918,112350.0,112340.0,0.63661674]
[1759108413385,0.42271918,112350.0,112340.0,0.63661674]
[1759108414279,0.91168718,112350.0,112340.0,0.62380674]
[1759108414583,1.1684226,112350.0,112340.0,0.34571132]
[1759108415783,0.91168718,112350.0,112340.0,0.34571132]
[1759108415986,1.1684226,112350.0,112340.0,0.34571132]
[1759108416181,1.1684226,112350.0,112340.0,0.25673542]
[1759108419483,0.7684226,112350.0,112340.0,0.25673542]
[1759108421785,0.51168718,112350.0,112340.0,0.25673542]
[1759108421985,1.5833426,112350.0,112340.0,0.25673542]
[1759108422986,0.51168718,112350.0,112340.0,0.25673542]
[1759108423187,1.32648718,112350.0,112340.0,0.62380674]
[1759108424581,1.32648718,112350.0,112340.0,0.1103359]
[1759108424786,1.32648718,112350.0,112340.0,0.62380674]
[1759108425288,0.51168718,112350.0,112340.0,0.62380674]
[1759108425490,1.32628718,112350.0,112340.0,0.62380674]
[1759108425790,1.31299718,112350.0,112340.0,0.63661674]
[1759108426288,1.32628718,112350.0,112340.0,0.62380674]
[1759108427580,1.5830226,112350.0,112340.0,0.62380674]
[1759108427790,1.5830226,112350.0,112340.0,0.53483084]
[1759108427984,0.0889759,112340.0,112330.0,0.1227883]
[1759108428185,0.50439508,112340.0,112330.0,0.36671922]
[1759108428990,0.50439508,112340.0,112330.0,0.36671932]
[1759108430187,0.7611305,112340.0,112330.0,0.27773542]
[1759108430587,0.50439508,112340.0,112330.0,0.27773542]
[1759108431189,0.50539508,112340.0,112330.0,0.27773542]
[1759108431590,0.50539508,112340.0,112330.0,0.25673542]
[1759108431784,0.7621305,112340.0,112330.0,0.25673542]
[1759108433095,0.77113777,112340.0,112330.0,0.25673542]
[1759108433295,0.1234339,112330.0,112320.0,0.1099872]
[1759108433496,1.31889308,112330.0,112320.0,0.53447084]
[1759108434190,1.31877308,112330.0,112320.0,0.36686882]
[1759108434597,1.31877308,112330.0,112320.0,0.36986882]
[1759108434898,1.31901308,112330.0,112320.0,0.37086882]
[1759108435389,0.50437308,112330.0,112320.0,0.38439882]
[1759108435583,1.21735918,112330.0,112320.0,0.64127584]
[1759108436189,1.30634308,112330.0,112320.0,0.64127584]
[1759108437495,1.30638308,112330.0,112320.0,0.64127584]
[1759108439701,0.49154308,112330.0,112320.0,0.64127584]
[1759108439895,1.21735918,112330.0,112320.0,1.04127584]
[1759108440090,1.30634308,112330.0,112320.0,1.04127584]
[1759108440799,1.37819524,112330.0,112320.0,1.04127584]
[1759108441694,1.39102524,112330.0,112320.0,0.28187702]
[1759108441893,1.39102524,112330.0,112320.0,0.37086882]
[1759108442302,1.42304931,112330.0,112320.0,0.37086882]
[1759108442688,1.39102524,112330.0,112320.0,0.37086882]
[1759108443494,1.39102524,112330.0,112320.0,0.28187702]
[1759108443798,1.39102524,112330.0,112320.0,0.26087702]
[1759108443998,1.39102524,112330.0,112320.0,0.28187702]
[1759108446496,1.03022524,112330.0,112320.0,0.28187702]
[1759108446696,1.75182524,112330.0,112320.0,0.28187702]
[1759108448395,2.00870226,112330.0,112320.0,0.004]
[1759108449802,1.19390226,112330.0,112320.0,0.004]
[1759108450005,2.00830226,112330.0,112320.0,0.004]
[1759108450306,1.75126524,112330.0,112320.0,0.004]
[1759108450703,1.75126524,112330.0,112320.0,0.26087702]
[1759108453102,1.75126524,112330.0,112320.0,0.004]
[1759108455998,0.93702524,112330.0,112320.0,0.004]
[1759108456199,1.75062524,112330.0,112320.0,0.004]
[1759108456403,0.93702524,112330.0,112320.0,0.26087702]
[1759108456705,1.75062524,112330.0,112320.0,0.28332702]
[1759108457010,0.93702524,112330.0,112320.0,0.28332702]
[1759108457605,1.75050524,112330.0,112320.0,0.28332702]
[1759108458510,0.93702524,112330.0,112320.0,0.28332702]
[1759108458703,1.75038524,112330.0,112320.0,0.28332702]
[1759108459413,1.75038524,112330.0,112320.0,0.26087702]
[1759108459810,0.93702524,112330.0,112320.0,0.26087702]
[1759108459999,1.75038524,112330.0,112320.0,0.26087702]
[1759108461610,1.75038524,112330.0,112320.0,0.004]
[1759108461811,1.75038524,112330.0,112320.0,0.28379702]
[1759108462105,1.75038524,112330.0,112320.0,0.26087702]
[1759108466409,1.78240931,112330.0,112320.0,0.004]
[1759108466610,2.43928633,112330.0,112320.0,0.004]
[1759108467608,2.4872656,112330.0,112320.0,0.004]
[1759108469518,2.4869456,112330.0,112320.0,0.004]
[1759108470814,2.43896633,112330.0,112320.0,0.004]
[1759108471014,0.1199289,112310.0,112300.0,0.25698472]
[1759108471218,1.33443728,112310.0,112300.0,0.0001077]
[1759108471419,0.52143728,112310.0,112300.0,0.25698472]
[1759108471717,1.33443728,112310.0,112300.0,0.0001077]
[1759108472020,1.33443728,112310.0,112300.0,0.25698472]
[1759108473021,1.33443728,112310.0,112300.0,0.26098472]
[1759108473519,1.33443728,112310.0,112300.0,0.26898472]
[1759108474122,1.34358079,112310.0,112300.0,0.26898472]
[1759108474820,0.53058079,112310.0,112300.0,0.29190472]
[1759108475120,1.34350079,112310.0,112300.0,0.29190472]
[1759108475520,0.53058079,112310.0,112300.0,0.38091152]
[1759108475720,1.33435728,112310.0,112300.0,0.38091152]
[1759108478029,1.33435728,112310.0,112300.0,0.1240345]
[1759108478227,1.34316254,112310.0,112300.0,0.38091152]
[1759108478623,0.52143728,112310.0,112300.0,0.38091152]
[1759108478830,1.33431728,112310.0,112300.0,0.38091152]
[1759108479832,0.52143728,112310.0,112300.0,0.38091152]
[1759108480030,1.32482728,112310.0,112300.0,0.39407152]
[1759108480426,0.42314838,112310.0,112300.0,0.39407152]
[1759108480632,1.23602838,112310.0,112300.0,0.39407152]
[1759108480824,1.32502728,112310.0,112300.0,0.39407152]
[1759108482031,1.32522728,112310.0,112300.0,0.39407152]
[1759108482830,1.32522728,112310.0,112300.0,0.4420259]
[1759108483026,0.42314838,112310.0,112300.0,0.4420259]
[1759108483225,1.23606838,112310.0,112300.0,0.4420259]
[1759108483632,0.42314838,112310.0,112300.0,0.4420259]
[1759108483826,1.23598838,112310.0,112300.0,0.4420259]
[1759108485933,0.42314838,112310.0,112300.0,0.4420259]
[1759108486332,1.23610838,112310.0,112300.0,0.4420259]
[1759108487632,1.23606838,112310.0,112300.0,0.4420259]
[1759108488032,1.23606838,112310.0,112300.0,0.18514888]
[1759108488331,1.23606838,112310.0,112300.0,0.4420259]
[1759108488533,0.42314838,112310.0,112300.0,0.4420259]
[1759108488733,1.23594838,112310.0,112300.0,0.4420259]
[1759108493343,1.23594838,112310.0,112300.0,0.39407152]
[1759108496246,1.23594838,112310.0,112300.0,0.6510323]
[1759108498444,0.42314838,112310.0,112300.0,0.6510323]
[1759108498644,0.06234838,112310.0,112300.0,1.3079512]
[1759108499844,0.42314838,112310.0,112300.0,1.3079512]
[1759108500145,0.42314838,112310.0,112300.0,0.5371945]
[1759108500345,0.51214728,112310.0,112300.0,1.0510323]
[1759108501846,0.42314838,112310.0,112300.0,1.0510323]
[1759108504245,0.42314838,112310.0,112300.0,1.3079512]
[1759108505335,0.42314838,112310.0,112300.0,1.6687512]
[1759108505336,0.04070838,112310.0,112300.0,1.6687512]
[1759108505540,0.5341255,112330.0,112320.0,0.125501]
[1759108505746,1.3464455,112330.0,112320.0,0.8962577]
[1759108505946,0.48614623,112330.0,112320.0,0.8962577]
[1759108506147,0.03202407,112330.0,112320.0,2.1085777]
[1759108506344,0.03202407,112330.0,112320.0,1.2962577]
[1759108506547,0.03202407,112330.0,112320.0,2.1085777]
[1759108506949,0.03202407,112330.0,112320.0,2.1105777]
[1759108509652,0.40877927,112340.0,112330.0,0.1254931]
[1759108509653,0.46227334,112340.0,112330.0,0.1254931]
[1759108509954,0.46227334,112340.0,112330.0,0.6393309]
[1759108511257,0.46527334,112340.0,112330.0,0.6393309]
[1759108512857,0.46527334,112340.0,112330.0,0.64808231]
[1759108514759,0.44380334,112340.0,112330.0,0.64808231]
[1759108514962,0.39582407,112340.0,112330.0,0.64808231]
[1759108515954,0.39582407,112340.0,112330.0,1.04808231]
[1759108516355,0.39582407,112340.0,112330.0,1.86024231]
[1759108517566,0.41645568,112340.0,112330.0,1.86024231]
[1759108517963,0.41645568,112340.0,112330.0,1.04808231]
[1759108518156,0.41645568,112340.0,112330.0,1.86024231]
[1759108518964,0.41645568,112340.0,112330.0,1.04808231]
[1759108519363,0.41645568,112340.0,112330.0,1.86020231]
[1759108520067,0.50543088,112340.0,112330.0,1.04808231]
[1759108520265,0.41645568,112340.0,112330.0,1.86020231]
[1759108521458,0.52657088,112340.0,112330.0,0.382412]
[1759108521765,0.58738015,112340.0,112330.0,0.382412]
[1759108521960,0.98738015,112340.0,112330.0,0.2795889]
[1759108522158,0.98738015,112340.0,112320.0,0.3597475]
[1759108522159,0.0889831,112330.0,112320.0,0.3597475]
[1759108522359,0.088991,112320.0,112310.0,0.02109]
[1759108522567,0.088991,112320.0,112300.0,0.2912766]
[1759108522568,0.110139,112310.0,112300.0,0.2912766]
[1759108522765,0.50164061,112310.0,112300.0,0.5350355]
[1759108522969,1.15855951,112310.0,112300.0,0.2781166]
[1759108523261,1.2113882,112310.0,112300.0,0.0001077]
[1759108523464,1.2113882,112310.0,112270.0,0.06071438]
[1759108523465,0.0890227,112280.0,112270.0,0.06071438]
[1759108523657,0.02114,112270.0,112260.0,0.08180438]
[1759108523856,0.40242078,112270.0,112260.0,0.68468078]
[1759108524058,0.49145168,112270.0,112260.0,0.59564218]
[1759108524262,1.15444058,112270.0,112260.0,0.32596328]
[1759108524456,1.96681814,112270.0,112260.0,0.2780089]
[1759108524656,1.70989924,112270.0,112260.0,0.2780089]
[1759108524862,1.70989924,112270.0,112260.0,0.2900089]
[1759108525169,1.70989924,112270.0,112260.0,0.5469278]
[1759108525559,1.15453814,112270.0,112260.0,0.2900089]
[1759108525763,1.70981924,112270.0,112260.0,0.2689189]
[1759108525963,1.70981924,112270.0,112260.0,0.2729189]
[1759108526160,1.70981924,112270.0,112260.0,0.2940089]
[1759108526564,1.70989924,112270.0,112260.0,0.2940089]
[1759108527172,1.70989924,112270.0,112260.0,0.2820089]
[1759108527466,1.71001924,112270.0,112260.0,0.3710475]
[1759108527667,1.15453814,112270.0,112260.0,0.2850089]
[1759108527863,1.96681814,112270.0,112260.0,0.2850089]
[1759108528066,1.96681814,112270.0,112260.0,0.2639189]
[1759108528465,1.96681814,112270.0,112260.0,0.007]
[1759108529272,1.97557659,112270.0,112260.0,0.007]
[1759108529868,1.16329659,112270.0,112260.0,0.007]
[1759108530074,1.97557659,112270.0,112260.0,0.007]
[1759108530376,1.97577659,112270.0,112260.0,0.007]
[1759108530881,1.18375157,112270.0,112260.0,0.007]
[1759108531174,2.06720892,112270.0,112260.0,0.007]
[1759108531374,2.04675394,112270.0,112260.0,0.007]
[1759108532076,2.04675394,112270.0,112260.0,0.2639189]
[1759108532470,2.04675394,112270.0,112260.0,0.007]
[1759108532776,2.04679394,112270.0,112260.0,0.2639189]
[1759108533072,1.23435394,112270.0,112260.0,0.2639189]
[1759108533279,1.78983504,112270.0,112260.0,0.007]
[1759108533587,2.04675394,112270.0,112260.0,0.007]
[1759108534678,1.23435394,112270.0,112260.0,0.007]
[1759108534877,2.04679394,112270.0,112260.0,0.007]
[1759108535080,1.23435394,112270.0,112260.0,0.007]
[1759108535373,2.30371284,112270.0,112260.0,0.007]
[1759108535568,0.1160165,112250.0,112240.0,0.30497328]
[1759108535771,0.1160165,112250.0,112240.0,0.0001]
[1759108535772,1.92833341,112250.0,112240.0,0.0001]
[1759108535965,1.51569341,112250.0,112240.0,0.0001]
[1759108536180,2.32849341,112250.0,112240.0,0.0001]
[1759108536568,1.51569341,112250.0,112240.0,0.0001]
[1759108536770,2.32849341,112250.0,112240.0,0.0001]
[1759108536970,1.51569341,112250.0,112240.0,0.0001]
[1759108537180,2.32849341,112250.0,112240.0,0.0101]
[1759108537479,1.51569341,112250.0,112240.0,0.0161]
[1759108537679,2.32853341,112250.0,112240.0,0.0161]
[1759108537880,2.33053341,112250.0,112240.0,0.0101]
[1759108538985,2.35093841,112250.0,112240.0,0.0101]
[1759108539582,1.95593841,112250.0,112240.0,0.0001]
[1759108540575,2.21285731,112250.0,112240.0,0.0001]
[1759108540782,0.0970323,112230.0,112210.0,0.089073]
[1759108540972,1.55348209,112220.0,112210.0,0.2780089]
[1759108541980,1.55348209,112220.0,112210.0,0.3670871]
[1759108542178,1.55348209,112220.0,112210.0,0.3710871]
[1759108542685,1.55348209,112220.0,112210.0,0.3770871]
[1759108543280,1.81040099,112220.0,112210.0,0.0990782]
[1759108543482,0.90873069,112220.0,112210.0,0.0990782]
[1759108543685,0.39489289,112220.0,112210.0,0.3898471]
[1759108543888,1.6242707,112220.0,112210.0,0.3898471]
[1759108544079,0.8115507,112220.0,112210.0,0.3898471]
[1759108544383,0.7224804,112220.0,112210.0,0.3898471]
[1759108544572,0.7224804,112220.0,112210.0,0.3858471]
[1759108544773,1.2655815,112220.0,112210.0,0.7858471]
[1759108545482,1.2657015,112220.0,112210.0,0.7858471]
[1759108546388,1.2657015,112220.0,112210.0,0.7798471]
[1759108548186,1.3547719,112220.0,112210.0,0.5229282]
[1759108548384,1.6116908,112220.0,112210.0,0.5229282]
[1759108548587,1.6116908,112220.0,112210.0,0.7798471]
[1759108549279,1.6196608,112220.0,112210.0,0.7798471]
[1759108550286,1.6116908,112220.0,112210.0,0.7798471]
[1759108551387,1.8765797,112220.0,112210.0,0.1101682]
[1759108551587,0.1173483,112210.0,112200.0,0.11167054]
[1759108551891,0.75622561,112210.0,112200.0,0.08915644]
[1759108552093,1.15628908,112210.0,112200.0,7.024e-05]
[1759108552880,1.41320798,112210.0,112200.0,7.024e-05]
[1759108553376,1.41320798,112210.0,112200.0,0.00307024]
[1759108553575,1.15628908,112210.0,112200.0,0.00307024]
[1759108553778,1.41320798,112210.0,112200.0,0.00507024]
[1759108555887,0.1193242,112190.0,112180.0,0.3685365]
[1759108556087,1.5532431,112190.0,112180.0,0.3685365]
[1759108556288,1.2963242,112190.0,112180.0,0.1116176]
[1759108556491,1.20723,112190.0,112180.0,0.1252576]
[1759108556678,0.38332262,112190.0,112180.0,0.38278872]
[1759108556982,1.19956262,112190.0,112180.0,0.38278872]
[1759108557390,1.19956262,112190.0,112180.0,0.38778872]
[1759108558785,0.38332262,112190.0,112180.0,0.38778872]
[1759108558992,1.19940262,112190.0,112180.0,0.39478872]
[1759108559690,0.38332262,112190.0,112180.0,0.39478872]
[1759108559883,1.19944262,112190.0,112180.0,0.39478872]
[1759108560691,0.38332262,112190.0,112180.0,0.39478872]
[1759108560892,1.19948262,112190.0,112180.0,0.39478872]
[1759108561592,1.55413794,112190.0,112180.0,0.1236176]
[1759108561789,1.55413794,112190.0,112180.0,0.1372576]
[1759108561987,1.29660682,112190.0,112180.0,0.39478872]
[1759108562286,1.55413794,112190.0,112180.0,0.1010976]
[1759108562490,1.55413794,112190.0,112180.0,0.012]
[1759108562792,1.55413794,112190.0,112180.0,0.1011021]
[1759108562993,1.91493794,112190.0,112180.0,0.1011021]
[1759108565392,1.92388346,112190.0,112180.0,0.1011021]
[1759108565587,1.91493794,112190.0,112180.0,0.1011021]
[1759108567694,1.65740682,112190.0,112180.0,0.35863322]
[1759108567986,1.20244262,112190.0,112180.0,0.79479322]
[1759108568191,1.20292262,112190.0,112180.0,0.79479322]
[1759108568388,0.38332262,112190.0,112180.0,0.8427476]
[1759108568586,1.20292262,112190.0,112180.0,0.8427476]
[1759108569288,0.38332262,112190.0,112180.0,0.8427476]
[1759108569488,0.36088262,112190.0,112180.0,0.8427476]
[1759108570885,8.262e-05,112190.0,112180.0,0.8427476]
[1759108571185,8.262e-05,112190.0,112180.0,1.2035476]
[1759108571582,8.262e-05,112190.0,112180.0,1.15559322]
[1759108571979,8.262e-05,112190.0,112180.0,2.29719948]
[1759108572186,1.14019841,112210.0,112200.0,0.1246863]
[1759108572387,1.16073782,112210.0,112200.0,0.63974854]
[1759108573095,0.40257856,112210.0,112200.0,0.63974854]
[1759108573888,0.40257856,112210.0,112200.0,1.03974854]
[1759108574192,0.04177856,112210.0,112200.0,1.03974854]
[1759108574591,0.04177856,112210.0,112200.0,1.04074854]
[1759108574988,8.074e-05,112210.0,112200.0,2.4491887]
[1759108575295,0.77543,112230.0,112220.0,0.1246704]
[1759108575599,0.79596785,112230.0,112220.0,0.38220152]
[1759108576695,0.79996785,112230.0,112220.0,0.38220152]
[1759108577084,0.79996785,112230.0,112220.0,0.39128983]
[1759108577294,0.79996785,112230.0,112220.0,0.38220152]
[1759108577688,0.79996785,112230.0,112220.0,0.1246704]
[1759108577889,0.1123004,112220.0,112210.0,0.1255243]
[1759108578092,0.75699937,112220.0,112210.0,0.1121443]
[1759108578588,0.40456785,112220.0,112210.0,0.38365542]
[1759108579191,0.38233785,112220.0,112210.0,0.38365542]
[1759108579592,0.40556785,112220.0,112210.0,0.38365542]
[1759108582203,5e-08,112220.0,112210.0,1.40198654]
[1759108582405,0.03202407,112240.0,112230.0,0.0890624]
[1759108582602,1.28479334,112250.0,112240.0,0.1261045]
[1759108582792,0.46403334,112250.0,112240.0,0.38363562]
[1759108582998,0.03202407,112250.0,112240.0,0.38363562]
[1759108583201,0.03202407,112250.0,112240.0,0.78363562]
[1759108583405,0.03202407,112260.0,112250.0,0.1260966]
[1759108583601,0.03202407,112260.0,112250.0,1.00195884]
[1759108583903,0.44080334,112270.0,112260.0,0.1260886]
[1759108584100,0.44080334,112270.0,112260.0,0.64115084]
[1759108584406,0.44080334,112270.0,112260.0,0.40537131]
[1759108585310,0.03802407,112270.0,112260.0,0.40537131]
[1759108585917,0.04702407,112270.0,112260.0,0.40537131]